[Event "SixDays Budapest March IM A 2025"]
[Site "Budapest"]
[Date "2025.03.26"]
[Round "5.5"]
[White "Cu, Ivan Travis"]
[Black "Kustar, Sandor"]
[Result "0-1"]
[Annotator "TA"]
[ECO "D76"]
[WhiteElo "2286"]
[BlackElo "2231"]
[PlyCount "109"]
[EventDate "2025.03.23"]
[EventType "tourn"]
[EventCountry "HUN"]
[SourceTitle "playchess.com"]
[Source "ChessBase"]
[SourceQuality "1"]
[TimeControl "5400+30"]

{[%evp 20,109,13,16,21,32,30,27,58,77,91,86,163,85,166,18,7,9,10,8,6,8,6,8,25,0,0,11,74,0,-4,-173,-147,-170,-39,-187,-179,-215,-206,-188,-206,-287,-279,-376,-83,-450,-470,-447,-429,-538,-77,-89,-91,-119,-88,-247,-240,-230,-231,-232,-236,-237,-237,-235,-231,-247,-247,-1598,-1581,-29963,-29963,-29980,-29970,-29971,-29972,-29970,-29968,-29972,-11791,-7456,0,-29978,0,-29991,-6531,-6685,-1117,-29991,-4618,-29991,29971,-539]} 1. Nf3 {[%emt 0:00:06]} Nf6 {[%emt 0:00:40]} 2. c4 {[%emt 0:00:08]} g6 {[%emt 0:01:23]} 3. g3 {[%emt 0:00:08]} Bg7 {[%emt 0:00:38]} 4. Bg2 {[%emt 0:00:08]} d5 {[%emt 0:00:54]} 5. O-O {[%emt 0:00:48]} O-O {[%emt 0:01:44]} 6. cxd5 {[%emt 0:00:20]} Nxd5 {[%emt 0:00:08]} 7. d4 {[%emt 0:00:14]} Nb6 {[%emt 0:00:52]} 8. Nc3 {[%emt 0:01:21]} Nc6 {[%emt 0:00:32]} 9. d5 {[%emt 0:00:24]} Na5 {[%emt 0:00:34]} 10. e4 {[%emt 0:00:17]} c6 {[%emt 0:00:31]} 11. Bf4 {[%emt 0:02:02]} cxd5 {[%emt 0:03:04] D76: Fianchetto Grünfeld: Main Line with 7...Nb6.} 12. Nxd5 {[%emt 0:00:26]} Nxd5 {[%emt 0:04:59]} 13. exd5 {[%emt 0:00:12]} Bxb2 {[%emt 0:14:29] White has an edge.} 14. Rb1 {[%emt 0:00:25] White sacrificed a pawn} Bf6 {[%emt 0:00:59]} 15. Rc1 $1 {[%emt 0:07:19][%mdl 1024] White has strong compensation.} Qb6 {[%emt 0:14:32]} (15... b6 $16) 16. Bc7 $146 {[%emt 0:17:32]} (16. Qa4 $1 $18) (16. Qa4 Qa6 17. Nd4 b5 18. Nxb5 Bd7 19. Rc6 Bxc6 20. dxc6 Rab8 21. Nc7 Qb6 22. Nd5 Qb5 23. Qe4 {1-0 Greenfeld,A (2545)-Karthikeyan,P (2368) Hyderabad op 2nd 2013 (8)}) 16... Qa6 {[%emt 0:08:48]} (16... Qb4 $16) 17. Re1 {[%emt 0:07:32]} (17. Qa4 $18) 17... Nc4 $11 {[%emt 0:03:37][%cal Oc4b2]} 18. Bf1 {[%emt 0:08:38]} b5 {[%emt 0:01:26] [#]} 19. a4 $1 {[%emt 0:01:14]} Qb7 {[%emt 0:01:02]} 20. axb5 {[%emt 0:02:13]} Qxc7 {[%emt 0:03:37]} 21. Rxc4 {[%emt 0:01:09]} Qb7 {[%emt 0:05:48][%cal Of8d8]} 22. Ne5 {[%emt 0:02:21]} a6 $1 {[%emt 0:00:17]} 23. d6 {[%emt 0:18:14] Black must now prevent Bg2.} axb5 {[%emt 0:12:31]} (23... Bxe5 $11 24. Bg2 Qxb5 25. dxe7 (25. Bxa8 Bxd6 26. Bd5 a5 $15) 25... Re8) 24. Rc7 {[%emt 0:10:55]} (24. Bg2 $1 $16 {[%cal Rg2b7]} Qxg2+ 25. Kxg2 bxc4 26. dxe7 (26. Nxc4 Bb7+ 27. Kg1 exd6 $14) 26... Bxe7 27. h4 (27. Nxc4 Bb4 $18)) 24... Qb6 {[%emt 0:01:09]} 25. Nc6 $2 {[%emt 0:11:47]} (25. dxe7 $11 Qxc7 26. exf8=B Kxf8 27. Qd5) 25... Ra2 {[%emt 0:02:00]} 26. Re3 {[%emt 0:00:09] [#]} Be6 {[%emt 0:06:00]} (26... Kg7 $1 $19 {...Ra1 would now be deadly.} 27. Nxe7 Be6) 27. Nxe7+ {[%emt 0:02:27]} (27. Qf3 $1 $15) 27... Kg7 $19 {[%emt 0:00:02]} 28. Rc6 {[%emt 0:01:30]} Qd4 {[%emt 0:01:45]} 29. Qxd4 {[%emt 0:04:07]} Bxd4 {[%emt 0:00:03]} 30. Rf3 {[%emt 0:00:45]} b4 {[%emt 0:01:16]} 31. Bc4 {[%emt 0:00:32] Prevents b3.} Rd2 {[%emt 0:07:54]} (31... Ra3 $19 32. Kg2 Rxf3 (32... Bh3+ $2 33. Kxh3 Rxf3 34. d7 $19) 33. Kxf3 b3) 32. Nd5 $2 {[%emt 0:00:28][%mdl 8192]} (32. Bxe6 $17 {is a better chance.} fxe6 33. Rxf8 Kxf8 34. Rc8+ Kg7 35. Nc6) 32... Bh3 {[%emt 0:01:05] This pair of bishops is nice.} 33. Bb3 {[%emt 0:00:18] Against Rd1+} Ra8 {[%emt 0:01:22] ( -> ...Ra1+)} 34. Rc1 {[%emt 0:00:12]} Rd8 $2 {[%emt 0:00:27]} (34... Ra3 $19 {is more deadly.} 35. g4 Bxg4) 35. Nxb4 {[%emt 0:00:31]} Rxd6 $40 {[%emt 0:00:03][%mdl 128] Black goes for the king.} 36. Rxf7+ {[%emt 0:00:14]} Kh6 {[%emt 0:00:36] Black is more active.} 37. Nc2 $2 {[%emt 0:01:23] [#]} (37. Rf3 $17 {was necessary.}) 37... Bxf2+ $1 {[%emt 0:00:37][%mdl 512]} 38. Rxf2 {[%emt 0:00:08]} Rd1+ {[%emt 0:00:06]} 39. Rf1 {[%emt 0:00:29]} Bxf1 {[%emt 0:00:30]} 40. Rxd1 {[%emt 0:00:04]} Rxd1 {[%emt 0:00:08][%mdl 4096] Endgame KRB-KBN} 41. Ne3 {[%emt 0:00:28]} Rb1 {[%emt 0:00:07]} 42. Nxf1 {[%emt 0:00:34]} Rxb3 {[%emt 0:00:02] KR-KN} 43. Kf2 $2 {[%emt 0:00:22]} (43. Nd2 Ra3 44. Ne4) 43... Kg5 {[%emt 0:00:07] ( -> ...Kg4)} 44. Kg2 {[%emt 0:00:20]} Kg4 {[%emt 0:00:37]} 45. h4 {[%emt 0:00:00]} Kf5 {[%emt 0:01:25]} 46. Kh3 {[%emt 0:01:51]} h5 {[%emt 0:00:14]} 47. Kg2 {[%emt 0:00:39]} Rd3 {[%emt 0:00:28]} 48. Nh2 {[%emt 0:00:15]} Ra3 {[%emt 0:00:29]} (48... Rd2+ $142 49. Kg1 Ke4 50. Kh1 Rc2 51. Kg1 Ke3 52. g4 hxg4 53. Nxg4+ Kf4 54. Nh2 Kg3 55. Nf1+ Kxh4 56. Ne3 Re2 57. Nd5 Kg3 58. Kf1 Kf3 59. Nc3 Rc2 60. Nd1 g5 (60... Rc1 $2 61. Ke1 $19) 61. Ke1 g4 (61... Rc1 $2 62. Kd2 $19) 62. Nc3 Rxc3 63. Kd2 Re3 64. Kc2 g3 65. Kd2 g2 66. Kc2 g1=Q (66... g1=R 67. Kd2 Rg2+ 68. Kd1 Rh2 69. Kc1 Re1#) 67. Kd2 Qf2+ 68. Kd1 Re1#) 49. Nf3 {[%emt 0:00:00]} Kg4 $2 {[%emt 0:00:45]} ({Black should try} 49... Re3 $19 50. Kf2 Re8) 50. Ng5 $2 {[%emt 0:00:06][%mdl 8192]} (50. Nh2+ $11 Kf5 51. Nf3) 50... Kf5 $2 {[%emt 0:00:34]} (50... Ra2+ {mates} 51. Kf1 Kxg3 52. Ne4+ Kxh4 53. Nf6 Kg3 54. Ne4+ Kf4 55. Nf6 Kf3 56. Ke1 h4 57. Nd5 h3 58. Nc3 Rc2 59. Kd1 Rg2 (59... Rxc3 60. Kd2 Rc6 61. Kd3 h2 62. Kd4 h1=Q 63. Kd5 Kf4+ 64. Kd4 Qe4#) 60. Nb1 Ke3 (60... h2 61. Nd2+ Ke3 62. Kc2 Rxd2+ 63. Kc3 h1=Q 64. Kb3 Qd5+ 65. Kb4 Rb2+ 66. Kc3 Qd4#) 61. Na3 Kd3 62. Nc2 Rxc2 63. Ke1 h2 64. Kf1 h1=Q#) 51. Ne4 $2 {[%emt 0:00:18][%mdl 8192]} Ke5 {[%emt 0:00:05]} (51... Kxe4 $142 52. Kf2 Ra2+ 53. Ke1 Kd3 (53... Kf3 54. Kd1 Kxg3 55. Kc1 Kxh4 56. Kd1 Kg3 57. Kc1 Rg2 58. Kb1 h4 59. Ka1 h3 60. Kb1 h2 61. Kc1 h1=Q#) 54. Kf1 Ke3 55. g4 hxg4 56. h5 Kf3 (56... gxh5 57. Kg1 Kf3 58. Kh1 g3 59. Kg1 Ra1#) 57. Ke1 g3 (57... gxh5 58. Kd1 g3 59. Kc1 g2 60. Kb1 Re2 61. Kc1 g1=Q#) 58. Kd1 g2 59. hxg6 g1=Q#) 52. Nf2 {[%emt 0:00:03]} Ra2 {[%emt 0:00:13]} (52... Kd5 $142 53. Nh3 Ke4 54. Ng5+ Ke3) 53. Kh2 {[%emt 0:01:22]} Rd2 {[%emt 0:00:00]} (53... Rxf2+ $142 54. Kg1 Rd2 55. Kf1 Ke4 (55... Rd1+ $2 56. Ke2 $19) 56. Ke1 Ke3 57. Kf1 Kf3 58. Ke1 Rd6 59. g4 hxg4 (59... Kxg4 60. Ke2 Kf4 61. Kf2 Rd2+ 62. Ke1 Ke3 63. Kf1 Ra2 64. Kg1 Kf3 65. Kh1 Kg3 66. Kg1 Ra1#) 60. h5 gxh5 61. Kf1 Rd1#) 54. Kh3 {[%emt 0:00:06] [#]} Rd1 $4 {[%emt 0:00:41][%mdl 8192]} 55. Kh2 $4 {[%emt 0:00:00][%mdl 8192] Never resign too early!   Weighted Error Value: White=1.15/Black=1.08  Loses game:     	White=3     	---        Missed win:     	---       	Black=2      Mistake:       	White=6     	Black=4      Inaccurate:     	White=4     	Black=1      OK:         	White=9     	Black=13     Best:        	White=1     	Black=4      Strong:       	White=1     	Black=1      Brilliant:      	---       	Black=1} (55. Nxd1 {is the narrow road to win.} Kf5 56. Nb2 Ke4 57. Kg2 Kf5 58. Nc4 g5 59. Kf3 Kg6 60. Ne3) 0-1